[Event "CZE Extraliga 2019-20"]
[Site "Czech Republic"]
[Date "2019.10.12"]
[Round "1.3"]
[White "Cyborowski, Lukasz"]
[Black "Markos, Jan"]
[Result "1/2-1/2"]
[ECO "A16"]
[WhiteElo "2501"]
[BlackElo "2572"]
[Annotator "ChessBase"]
[PlyCount "54"]
[EventDate "2019.09.15"]
[EventType "team-tourn"]
[EventCountry "CZE"]
[SourceTitle "playchess.com"]
[Source "ChessBase"]
[SourceQuality "1"]
[WhiteTeam "Turnov"]
[BlackTeam "Kromeriz"]
[TimeControl "40/5400+30:1800+30"]

1. c4 {[%emt 0:00:00]} Nf6 {[%emt 0:00:09]} 2. Nc3 {[%emt 0:00:12]} g6 {[%emt 0:03:09]} 3. g3 {[%emt 0:03:17]} Bg7 {[%emt 0:01:17]} 4. Bg2 {[%emt 0:00:06]} O-O {[%emt 0:00:06]} 5. Nf3 {[%emt 0:02:03]} d5 {[%emt 0:02:10]} 6. cxd5 {[%emt 0:04:51]} Nxd5 {[%emt 0:00:10]} 7. O-O {[%emt 0:00:11]} c5 {[%emt 0:06:15]} 8. Nxd5 {[%emt 0:11:00]} Qxd5 {[%emt 0:00:18]} 9. d3 {[%emt 0:00:11]} Nc6 {[%emt 0:03:32]} 10. Be3 {[%emt 0:06:40]} Qd6 {[%emt 0:29:48]} 11. Rc1 {[%emt 0:09:56]} Nd4 {[%emt 0:00:28]} 12. Nxd4 {[%emt 0:11:36]} cxd4 {[%emt 0:02:01]} 13. Bf4 {[%emt 0:00:20]} e5 {[%emt 0:01:44]} 14. Bd2 {[%emt 0:00:05]} a5 {[%emt 0:06:36]} 15. b4 {[%emt 0:13:53]} axb4 {[%emt 0:03:18]} 16. Qb3 {[%emt 0:01:38]} Be6 {[%emt 0:03:45]} 17. Qxb4 {[%emt 0:01:04]} Qd7 {[%emt 0:05:37]} 18. a3 {[%emt 0:00:41]} Rfb8 {[%emt 0:02:14]} 19. Qb2 {[%emt 0:01:39]} Bf8 {[%emt 0:03:26]} 20. Bb4 {[%emt 0:03:14]} Qb5 {[%emt 0:00:53]} 21. Rb1 {[%emt 0:03:36]} Bxb4 {[%emt 0:00:30]} 22. Qxb4 {[%emt 0:00:05]} Qxb4 {[%emt 0:00:05]} 23. Rxb4 {[%emt 0:00:04]} Rxa3 {[%emt 0:00:08]} 24. Rxb7 {[%emt 0:00:07]} Rxb7 {[%emt 0:00:52]} 25. Bxb7 {[%emt 0:00:05]} Ra2 {[%emt 0:03:48]} 26. Re1 {[%emt 0:04:50]} Rb2 {[%emt 0:05:12]} 27. Bc6 {[%emt 0:00:52]} Kg7 {[%emt 0:00:55]} 1/2-1/2

[Event "CZE Extraliga 2019-20"]
[Site "Czech Republic"]
[Date "2019.10.12"]
[Round "1.3"]
[White "Roubalik, Jakub"]
[Black "UNI4 Bernasek Jan GM"]
[Result "0-1"]
[ECO "E12"]
[WhiteElo "2410"]
[BlackElo "2490"]
[Annotator "ChessBase"]
[PlyCount "56"]
[EventDate "2019.09.15"]
[EventType "team-tourn"]
[EventCountry "CZE"]
[SourceTitle "playchess.com"]
[Source "ChessBase"]
[SourceQuality "1"]
[WhiteTeam "Duras"]
[TimeControl "40/5400+30:1800+30"]

1. d4 {[%emt 0:00:00]} Nf6 {[%emt 0:01:05]} 2. c4 {[%emt 0:00:00]} e6 {[%emt 0:00:32]} 3. Nf3 {[%emt 0:00:00]} b6 {[%emt 0:02:15]} 4. a3 {[%emt 0:00:12]} d5 {[%emt 0:03:25]} 5. cxd5 {[%emt 0:01:56]} exd5 {[%emt 0:00:08]} 6. Nc3 {[%emt 0:00:11]} Be7 {[%emt 0:01:04]} 7. Bf4 {[%emt 0:05:15]} O-O {[%emt 0:01:33]} 8. e3 {[%emt 0:01:48]} Bb7 {[%emt 0:05:12]} 9. Bd3 {[%emt 0:03:26]} c5 {[%emt 0:04:39]} 10. O-O {[%emt 0:04:33]} Nc6 {[%emt 0:03:06]} 11. Re1 {[%emt 0:07:28]} Re8 {[%emt 0:03:38]} 12. Ne5 {[%emt 0:10:57]} cxd4 {[%emt 0:08:08]} 13. Nxc6 {[%emt 0:01:32]} Bxc6 {[%emt 0:00:00]} 14. exd4 {[%emt 0:00:00]} Qd7 {[%emt 0:02:00]} 15. Qf3 {[%emt 0:02:09]} b5 16. Bg5 {[%emt 0:13:09]} h6 {[%emt 0:12:34]} 17. Bf5 {[%emt 0:09:59]} Qb7 {[%emt 0:02:51]} 18. Bh4 {[%emt 0:10:54]} a5 {[%emt 0:03:24]} 19. Bc2 {[%emt 0:12:56]} g5 {[%emt 0:08:02]} 20. Bg3 {[%emt 0:03:23]} b4 {[%emt 0:02:42]} 21. Nd1 {[%emt 0:01:42]} Ne4 {[%emt 0:15:43]} 22. Ne3 {[%emt 0:00:34]} Bf8 {[%emt 0:00:17]} 23. Qf5 {[%emt 0:05:46]} Bg7 {[%emt 0:01:51]} 24. Bxe4 {[%emt 0:03:28]} dxe4 {[%emt 0:05:33]} 25. Ng4 {[%emt 0:00:34]} Bd7 {[%emt 0:00:20]} 26. Nf6+ {[%emt 0:00:32]} Bxf6 {[%emt 0:00:06]} 27. Qxf6 {[%emt 0:00:02]} Ra6 {[%emt 0:00:09]} 28. Bd6 {[%emt 0:00:36]} Qd5 {[%emt 0:00:38]} 0-1

[Event "CZE Extraliga 2019-20"]
[Site "Czech Republic"]
[Date "2019.10.12"]
[Round "1.4"]
[White "Jurcik, Marian"]
[Black "Cerveny, Martin"]
[Result "1-0"]
[ECO "B51"]
[WhiteElo "2486"]
[BlackElo "2350"]
[Annotator "ChessBase"]
[PlyCount "203"]
[EventDate "2019.09.15"]
[EventType "team-tourn"]
[EventCountry "CZE"]
[SourceTitle "playchess.com"]
[Source "ChessBase"]
[SourceQuality "1"]
[BlackTeam "Duras"]
[TimeControl "40/5400+30:1800+30"]

1. e4 {[%emt 0:00:00]} c5 {[%emt 0:00:00]} 2. Nf3 {[%emt 0:02:19]} d6 {[%emt 0:00:00]} 3. Bb5+ {[%emt 0:02:58]} Nd7 {[%emt 0:00:38]} 4. O-O {[%emt 0:00:50]} a6 {[%emt 0:00:42]} 5. Bd3 {[%emt 0:04:32]} Ngf6 {[%emt 0:05:37]} 6. Re1 {[%emt 0:00:31]} Ne5 {[%emt 0:09:34]} 7. Nxe5 {[%emt 0:01:41]} dxe5 {[%emt 0:00:05]} 8. a4 {[%emt 0:01:30]} Bg4 {[%emt 0:06:20]} 9. Be2 {[%emt 0:02:12]} Bd7 {[%emt 0:01:44]} 10. d3 {[%emt 0:02:43]} Qc7 {[%emt 0:02:55]} 11. b3 {[%emt 0:04:08]} Rd8 {[%emt 0:04:56]} 12. a5 {[%emt 0:06:25]} Bc6 {[%emt 0:03:08]} 13. Nd2 {[%emt 0:02:20]} e6 {[%emt 0:05:10]} 14. Bb2 {[%emt 0:00:36]} Be7 {[%emt 0:01:06]} 15. Qc1 {[%emt 0:01:09]} Nd7 {[%emt 0:02:40]} 16. Nc4 {[%emt 0:02:51]} O-O {[%emt 0:02:57]} 17. Qe3 {[%emt 0:01:21]} Bb5 {[%emt 0:00:26]} 18. Nd2 {[%emt 0:08:06]} Bd6 {[%emt 0:14:33]} 19. Qh3 {[%emt 0:07:47]} Nb8 {[%emt 0:03:56]} 20. Bd1 {[%emt 0:08:51]} Qe7 {[%emt 0:01:15]} 21. f4 {[%emt 0:08:05]} exf4 {[%emt 0:03:01]} 22. e5 {[%emt 0:00:17]} Bc7 {[%emt 0:00:02]} 23. Ne4 {[%emt 0:01:37]} Nd7 {[%emt 0:03:47]} 24. Qh5 {[%emt 0:18:57]} f6 {[%emt 0:08:18]} 25. exf6 {[%emt 0:01:35]} gxf6 {[%emt 0:00:27]} 26. Nf2 {[%emt 0:05:23]} e5 {[%emt 0:03:28]} 27. Bf3 {[%emt 0:00:55]} Rb8 {[%emt 0:04:26]} 28. Bd5+ {[%emt 0:02:08]} Kh8 {[%emt 0:00:12]} 29. Qf3 {[%emt 0:00:01]} Qd6 {[%emt 0:02:06]} 30. Re2 {[%emt 0:01:47]} Bc6 {[%emt 0:00:39]} 31. Bxc6 {[%emt 0:00:27]} bxc6 {[%emt 0:00:22]} 32. Ne4 {[%emt 0:00:37]} Qd5 {[%emt 0:02:12]} 33. Qh3 {[%emt 0:00:21]} Qf7 {[%emt 0:01:35]} 34. Qf5 {[%emt 0:01:05]} Rg8 {[%emt 0:02:53]} 35. Bc3 {[%emt 0:00:31]} Rg7 {[%emt 0:00:34]} 36. Rf1 {[%emt 0:00:26]} Re8 {[%emt 0:02:13]} 37. Kh1 {[%emt 0:00:50]} Qg6 {[%emt 0:02:13]} 38. Qh3 {[%emt 0:00:02]} Kg8 {[%emt 0:00:38]} 39. Nd2 {[%emt 0:00:52]} h5 {[%emt 0:01:16]} 40. Qf3 {[%emt 0:00:31]} Qg4 {[%emt 0:00:38]} 41. Qxg4 {[%emt 0:03:20]} hxg4 {[%emt 0:01:09]} 42. Rxf4 {[%emt 0:01:56]} Kf7 {[%emt 0:03:41]} 43. Rf1 {[%emt 0:05:21]} Ke6 {[%emt 0:00:43]} 44. g3 {[%emt 0:01:25]} Bd6 {[%emt 0:00:18]} 45. Nc4 {[%emt 0:01:13]} Be7 {[%emt 0:01:30]} 46. Kg1 {[%emt 0:06:34]} Reg8 {[%emt 0:06:22]} 47. Rff2 {[%emt 0:02:03]} Nf8 {[%emt 0:01:20]} 48. Kf1 {[%emt 0:05:39]} Kd7 {[%emt 0:01:08]} 49. Re4 {[%emt 0:01:19]} Ne6 {[%emt 0:00:39]} 50. Ne3 {[%emt 0:02:28]} Rg6 {[%emt 0:01:51]} 51. Rf5 {[%emt 0:01:47]} Nd4 {[%emt 0:01:46]} 52. Rh5 {[%emt 0:01:03]} Ke6 {[%emt 0:00:57]} 53. Bxd4 {[%emt 0:01:03]} cxd4 {[%emt 0:00:05]} 54. Nc4 {[%emt 0:00:44]} Bf8 {[%emt 0:02:14]} 55. Rh7 {[%emt 0:00:55]} Bg7 {[%emt 0:01:01]} 56. Re2 {[%emt 0:00:39]} Rh6 {[%emt 0:02:25]} 57. Rxh6 {[%emt 0:00:09]} Bxh6 {[%emt 0:00:02]} 58. Kg2 {[%emt 0:00:47]} Bf8 {[%emt 0:00:22]} 59. h3 {[%emt 0:00:54]} gxh3+ {[%emt 0:00:27]} 60. Kxh3 {[%emt 0:00:01]} Bb4 {[%emt 0:00:18]} 61. Re4 {[%emt 0:00:36]} Be7 {[%emt 0:02:17]} 62. Kg2 {[%emt 0:00:59]} Rb8 {[%emt 0:01:34]} 63. Rh4 {[%emt 0:00:33]} Rg8 {[%emt 0:06:32]} 64. Kf3 {[%emt 0:00:13]} f5 {[%emt 0:00:44]} 65. Rh7 {[%emt 0:00:39]} Re8 {[%emt 0:00:33]} 66. Rh6+ {[%emt 0:00:45]} Bf6 {[%emt 0:00:09]} 67. Rh7 {[%emt 0:00:22]} Be7 {[%emt 0:00:06]} 68. g4 {[%emt 0:00:33]} fxg4+ {[%emt 0:00:45]} 69. Kxg4 {[%emt 0:00:01]} Bc5 {[%emt 0:01:18]} 70. Kf3 {[%emt 0:00:59]} Rf8+ {[%emt 0:00:46]} 71. Ke2 {[%emt 0:00:03]} Kd5 {[%emt 0:01:03]} 72. Rd7+ {[%emt 0:00:37]} Ke6 {[%emt 0:00:05]} 73. Rc7 {[%emt 0:00:36]} Kd5 {[%emt 0:00:13]} 74. Rd7+ {[%emt 0:00:15]} Ke6 {[%emt 0:00:05]} 75. Rc7 {[%emt 0:00:03]} Kd5 {[%emt 0:00:05]} 76. Rh7 {[%emt 0:01:35]} Rg8 {[%emt 0:00:20]} 77. Rh5 {[%emt 0:00:31]} Bd6 {[%emt 0:01:42]} 78. Nb6+ {[%emt 0:00:25]} Kc5 {[%emt 0:00:26]} 79. Nc4 {[%emt 0:00:34]} Bc7 {[%emt 0:00:26]} 80. Rh7 {[%emt 0:00:20]} Rc8 {[%emt 0:02:06]} 81. Re7 {[%emt 0:00:33]} Kb5 {[%emt 0:01:07]} 82. Kd1 {[%emt 0:00:31]} Kb4 {[%emt 0:00:21]} 83. Kd2 {[%emt 0:00:17]} Kb5 {[%emt 0:00:09]} 84. Kc1 {[%emt 0:00:14]} Kc5 {[%emt 0:00:27]} 85. Kb2 {[%emt 0:00:28]} Kb4 {[%emt 0:00:30]} 86. Re6 {[%emt 0:01:08]} Bxa5 {[%emt 0:00:55]} 87. Rxe5 {[%emt 0:00:28]} Bc7 {[%emt 0:00:43]} 88. Re7 {[%emt 0:00:29]} a5 {[%emt 0:00:25]} 89. Re4 {[%emt 0:00:28]} c5 {[%emt 0:00:30]} 90. Na3 {[%emt 0:00:29]} a4 {[%emt 0:00:38]} 91. c3+ {[%emt 0:00:31]} Ka5 {[%emt 0:00:02]} 92. Nc4+ {[%emt 0:00:28]} Kb5 {[%emt 0:00:26]} 93. cxd4 {[%emt 0:00:31]} axb3 {[%emt 0:00:28]} 94. d5 {[%emt 0:00:34]} Rd8 {[%emt 0:00:47]} 95. Ne3 {[%emt 0:00:24]} Bg3 {[%emt 0:00:41]} 96. Nd1 {[%emt 0:00:37]} Kb6 {[%emt 0:00:59]} 97. Nc3 {[%emt 0:00:31]} Bf2 {[%emt 0:00:02]} 98. Re6+ {[%emt 0:00:20]} Ka5 {[%emt 0:00:12]} 99. Kxb3 {[%emt 0:00:29]} Bd4 {[%emt 0:00:12]} 100. Ne4 {[%emt 0:00:39]} Rxd5 {[%emt 0:00:32]} 101. Nd2 {[%emt 0:00:28]} c4+ {[%emt 0:01:30]} 102. Kxc4 {[%emt 0:00:08]} 1-0

[Event "CZE Extraliga 2019-20"]
[Site "Czech Republic"]
[Date "2019.10.12"]
[Round "1.4"]
[White "Malinovsky, Karel"]
[Black "Simacek, Pavel"]
[Result "1/2-1/2"]
[ECO "C80"]
[WhiteElo "2478"]
[BlackElo "2481"]
[Annotator "ChessBase"]
[PlyCount "54"]
[EventDate "2019.09.15"]
[EventType "team-tourn"]
[EventCountry "CZE"]
[SourceTitle "playchess.com"]
[Source "ChessBase"]
[SourceQuality "1"]
[WhiteTeam "Kromeriz"]
[BlackTeam "Turnov"]
[TimeControl "40/5400+30:1800+30"]

1. e4 {[%emt 0:00:00]} e5 {[%emt 0:00:00]} 2. Nf3 {[%emt 0:00:00]} Nc6 {[%emt 0:00:00]} 3. Bb5 {[%emt 0:00:00]} a6 {[%emt 0:00:00]} 4. Ba4 {[%emt 0:00:00]} Nf6 {[%emt 0:00:02]} 5. O-O {[%emt 0:00:41]} Nxe4 {[%emt 0:00:06]} 6. d4 {[%emt 0:00:14]} b5 {[%emt 0:00:15]} 7. Bb3 {[%emt 0:00:09]} d5 {[%emt 0:00:03]} 8. dxe5 {[%emt 0:00:20]} Be6 {[%emt 0:00:03]} 9. Nbd2 {[%emt 0:00:54]} Bc5 {[%emt 0:01:12]} 10. Nxe4 {[%emt 0:06:25]} dxe4 {[%emt 0:00:06]} 11. Ng5 {[%emt 0:00:07]} Qxd1 {[%emt 0:04:13]} 12. Rxd1 {[%emt 0:00:51]} Bxb3 {[%emt 0:00:04]} 13. axb3 {[%emt 0:00:08]} Bb6 {[%emt 0:00:17]} 14. Be3 {[%emt 0:07:12]} Bxe3 {[%emt 0:18:49]} 15. fxe3 {[%emt 0:00:08]} Nxe5 {[%emt 0:00:05]} 16. Rd5 {[%emt 0:16:16]} Ng4 {[%emt 0:00:14]} 17. h3 {[%emt 0:05:01]} Nxe3 {[%emt 0:01:21]} 18. Rc5 {[%emt 0:07:15]} h6 {[%emt 0:11:24]} 19. Nxe4 {[%emt 0:06:44]} O-O-O {[%emt 0:02:36]} 20. Rxa6 {[%emt 0:13:49]} Kb7 {[%emt 0:01:52]} 21. Ra1 {[%emt 0:02:08]} Kb6 {[%emt 0:00:28]} 22. c4 {[%emt 0:08:53]} c6 {[%emt 0:00:22]} 23. cxb5 {[%emt 0:00:44]} cxb5 {[%emt 0:01:16]} 24. Rac1 {[%emt 0:04:26]} Rd1+ {[%emt 0:02:03]} 25. Rxd1 {[%emt 0:01:01]} Nxd1 {[%emt 0:00:04]} 26. Rf5 {[%emt 0:04:57]} f6 {[%emt 0:03:42]} 27. Nc3 {[%emt 0:01:00]} Nxc3 {[%emt 0:02:52]} 1/2-1/2

[Event "CZE Extraliga 2019-20"]
[Site "Czech Republic"]
[Date "2019.10.12"]
[Round "1.4"]
[White "Plischki, Sebastian"]
[Black "Polak, Tomas"]
[Result "0-1"]
[ECO "A10"]
[WhiteElo "2391"]
[BlackElo "2527"]
[Annotator "RC"]
[PlyCount "74"]
[EventDate "2019.09.15"]
[EventType "team-tourn"]
[EventCountry "CZE"]
[SourceTitle "playchess.com"]
[Source "ChessBase"]
[SourceQuality "1"]
[TimeControl "40/5400+30:1800+30"]

1. c4 {[%emt 0:00:00]} b6 {[%emt 0:00:17]} 2. Nc3 {[%emt 0:00:45]} Bb7 {[%emt 0:00:05]} 3. e4 {[%emt 0:00:43]} e5 {[%emt 0:00:13]} 4. Nf3 {[%emt 0:00:57]} Nc6 {[%emt 0:00:13]} 5. Be2 {[%emt 0:02:40]} g6 {[%emt 0:07:57]} 6. d4 {[%emt 0:03:45]} exd4 {[%emt 0:02:01]} 7. Nxd4 {[%emt 0:00:20]} Bg7 {[%emt 0:00:34]} 8. Be3 {[%emt 0:03:52]} Nge7 {[%emt 0:04:39]} 9. O-O {[%emt 0:02:25]} O-O {[%emt 0:00:29]} 10. Nxc6 {[%emt 0:03:54]} Nxc6 {[%emt 0:02:21]} 11. Qd2 {[%emt 0:03:17]} d6 {[%emt 0:07:53]} 12. Bh6 {[%emt 0:04:07]} Bxh6 {[%emt 0:09:54]} 13. Qxh6 {[%emt 0:00:08]} Nd4 {[%emt 0:00:09]} 14. Bd3 {[%emt 0:04:01]} c5 {[%emt 0:04:51]} 15. Rae1 {[%emt 0:04:59]} Qf6 {[%emt 0:01:49]} 16. f4 {[%emt 0:07:39]} Qg7 {[%emt 0:09:20]} 17. Qh3 {[%emt 0:07:50]} Rfe8 {[%emt 0:17:08]} 18. Re3 {[%emt 0:23:36]} Re7 {[%emt 0:08:37]} 19. Rfe1 {[%emt 0:00:30]} Rae8 {[%emt 0:01:15]} 20. Qg3 {[%emt 0:01:21]} Kf8 {[%emt 0:03:22]} 21. h3 {[%emt 0:05:15]} Bc6 {[%emt 0:01:24]} 22. Kh2 {[%emt 0:00:57]} a6 {[%emt 0:04:20]} 23. Nd5 {[%emt 0:06:00]} Bxd5 24. cxd5 {[%emt 0:00:06]} Rd8 {[%emt 0:03:00]} 25. e5 {[%emt 0:04:01]} c4 {[%emt 0:03:36]} 26. exd6 {[%emt 0:03:30]} Red7 {[%emt 0:00:10]} 27. Re7 {[%emt 0:02:38]} cxd3 {[%emt 0:02:40]} 28. Qe3 {[%emt 0:01:41]} Qf6 {[%emt 0:01:40]} 29. Rxd7 {[%emt 0:00:21]} Rxd7 {[%emt 0:00:04]} 30. Qe8+ {[%emt 0:00:07]} Kg7 {[%emt 0:00:04]} 31. Qxd7 {[%emt 0:00:05]} Qxf4+ {[%emt 0:00:13]} 32. Kh1 {[%emt 0:00:18]} d2 {[%emt 0:01:59]} 33. Rd1 {[%emt 0:01:15]} Nf3 {[%emt 0:00:39]} 34. gxf3 {[%emt 0:01:31]} Qxf3+ {[%emt 0:00:05]} 35. Kh2 {[%emt 0:00:05]} Qf2+ {[%emt 0:00:21]} 36. Kh1 {[%emt 0:00:06]} Qf3+ {[%emt 0:00:03]} 37. Kh2 {[%emt 0:00:05]} Qe2+ {[%emt 0:00:04]} 0-1

[Event "CZE Extraliga 2019-20"]
[Site "Czech Republic"]
[Date "2019.10.12"]
[Round "1.4"]
[White "Szotkowski, Jakub"]
[Black "Votava, Jan"]
[Result "0-1"]
[ECO "D78"]
[WhiteElo "2388"]
[BlackElo "2521"]
[Annotator "ChessBase"]
[PlyCount "106"]
[EventDate "2019.09.15"]
[EventType "team-tourn"]
[EventCountry "CZE"]
[SourceTitle "playchess.com"]
[Source "ChessBase"]
[SourceQuality "1"]
[BlackTeam "Pardubice"]
[TimeControl "40/5400+30:1800+30"]

1. d4 {[%emt 0:00:00]} Nf6 {[%emt 0:00:00]} 2. c4 {[%emt 0:00:00]} g6 {[%emt 0:00:00]} 3. g3 {[%emt 0:00:07]} c6 {[%emt 0:00:08]} 4. Bg2 {[%emt 0:00:36]} d5 {[%emt 0:00:04]} 5. Nf3 {[%emt 0:00:53]} Bg7 {[%emt 0:00:03]} 6. O-O {[%emt 0:00:21]} O-O {[%emt 0:00:04]} 7. b3 {[%emt 0:01:15]} b6 {[%emt 0:07:01]} 8. Ne5 {[%emt 0:08:19]} Bb7 {[%emt 0:08:56]} 9. Bb2 {[%emt 0:01:36]} Nbd7 {[%emt 0:03:15]} 10. Nd2 {[%emt 0:03:20]} e6 {[%emt 0:08:59]} 11. Rc1 {[%emt 0:06:49]} Rc8 {[%emt 0:17:27]} 12. Rc2 {[%emt 0:17:00]} Re8 {[%emt 0:09:19]} 13. Qa1 {[%emt 0:10:07]} Nxe5 {[%emt 0:15:32]} 14. dxe5 {[%emt 0:00:04]} Nd7 {[%emt 0:00:14]} 15. Rd1 {[%emt 0:10:38]} Qe7 {[%emt 0:10:01]} 16. e3 {[%emt 0:11:48]} f6 {[%emt 0:05:53]} 17. Nf3 {[%emt 0:03:00]} f5 {[%emt 0:03:41]} 18. h4 {[%emt 0:03:05]} h6 {[%emt 0:01:40]} 19. Ne1 {[%emt 0:03:10]} g5 {[%emt 0:01:26]} 20. hxg5 {[%emt 0:01:35]} hxg5 {[%emt 0:00:05]} 21. Nd3 {[%emt 0:01:28]} Nf8 {[%emt 0:02:17]} 22. c5 {[%emt 0:08:56]} Nd7 {[%emt 0:01:30]} 23. Bd4 {[%emt 0:01:56]} Ba6 {[%emt 0:00:37]} 24. b4 {[%emt 0:02:22]} Bb5 {[%emt 0:01:48]} 25. a4 {[%emt 0:02:30]} Bc4 {[%emt 0:00:05]} 26. Qc3 {[%emt 0:00:12]} b5 {[%emt 0:02:03]} 27. Nb2 {[%emt 0:00:38]} g4 {[%emt 0:00:29]} 28. Nxc4 {[%emt 0:01:25]} bxc4 {[%emt 0:00:03]} 29. Kf1 {[%emt 0:00:31]} a5 {[%emt 0:00:52]} 30. bxa5 {[%emt 0:00:47]} Nxc5 {[%emt 0:00:11]} 31. Bxc5 {[%emt 0:00:28]} Qxc5 {[%emt 0:00:04]} 32. Rb1 {[%emt 0:00:10]} Ra8 {[%emt 0:00:42]} 33. Rb6 {[%emt 0:00:53]} Qxa5 {[%emt 0:01:14]} 34. Qxa5 {[%emt 0:00:14]} Rxa5 {[%emt 0:00:01]} 35. Rxc6 {[%emt 0:00:09]} Rxa4 {[%emt 0:00:42]} 36. f4 {[%emt 0:00:32]} gxf3 {[%emt 0:00:31]} 37. Bxf3 {[%emt 0:00:05]} Bxe5 {[%emt 0:00:44]} 38. g4 {[%emt 0:00:05]} Ra1+ {[%emt 0:00:41]} 39. Kg2 {[%emt 0:00:51]} f4 {[%emt 0:00:30]} 40. e4 {[%emt 0:01:34]} dxe4 {[%emt 0:00:30]} 41. Bxe4 {[%emt 0:30:26]} c3 {[%emt 0:04:57]} 42. g5 {[%emt 0:00:00]} Re1 {[%emt 0:06:05]} 43. Bg6 {[%emt 0:00:00]} Re7 {[%emt 0:03:47]} 44. Kf2 {[%emt 0:00:00]} Re3 {[%emt 0:02:46]} 45. Re2 {[%emt 0:00:00]} Kg7 {[%emt 0:10:46]} 46. Bc2 {[%emt 0:00:00]} Bd4 {[%emt 0:00:24]} 47. Rxe3 {[%emt 0:00:00]} fxe3+ {[%emt 0:00:42]} 48. Ke2 {[%emt 0:00:00]} Rf7 {[%emt 0:00:31]} 49. Rxe6 {[%emt 0:00:00]} Rf2+ {[%emt 0:00:13]} 50. Kd3 {[%emt 0:00:00]} Rd2+ {[%emt 0:00:18]} 51. Kc4 {[%emt 0:00:00]} e2 {[%emt 0:02:42]} 52. g6 {[%emt 0:02:17]} Bf6 {[%emt 0:00:32]} 53. Bd3 {[%emt 0:00:31]} Bh4 {[%emt 0:01:09]} 0-1

[Event "CZE Extraliga 2019-20"]
[Site "Czech Republic"]
[Date "2019.10.12"]
[Round "1.5"]
[White "Pechac, Jergus"]
[Black "Jasny, Stanislav"]
[Result "1-0"]
[ECO "B06"]
[WhiteElo "2491"]
[BlackElo "2326"]
[Annotator "ChessBase"]
[PlyCount "81"]
[EventDate "2019.09.15"]
[EventType "team-tourn"]
[EventCountry "CZE"]
[SourceTitle "playchess.com"]
[Source "ChessBase"]
[SourceQuality "1"]
[WhiteTeam "Pardubice"]
[TimeControl "40/5400+30:1800+30"]

1. d4 {[%emt 0:00:00]} g6 {[%emt 0:00:00]} 2. e4 {[%emt 0:00:21]} Bg7 {[%emt 0:00:00]} 3. Nc3 {[%emt 0:00:15]} d6 {[%emt 0:00:06]} 4. Be3 {[%emt 0:00:17]} a6 {[%emt 0:00:33]} 5. Qd2 {[%emt 0:00:23]} b5 {[%emt 0:00:28]} 6. f3 {[%emt 0:00:16]} Nd7 {[%emt 0:00:44]} 7. h4 {[%emt 0:00:13]} Ngf6 {[%emt 0:11:25]} 8. O-O-O {[%emt 0:01:40]} Nb6 {[%emt 0:02:54]} 9. Bh6 {[%emt 0:01:45]} Bxh6 {[%emt 0:01:17]} 10. Qxh6 {[%emt 0:00:06]} b4 {[%emt 0:00:42]} 11. Nce2 {[%emt 0:05:12]} e6 {[%emt 0:07:38]} 12. g4 {[%emt 0:04:12]} Qe7 {[%emt 0:04:29]} 13. h5 {[%emt 0:00:48]} Bb7 {[%emt 0:07:56]} 14. hxg6 {[%emt 0:05:57]} fxg6 {[%emt 0:00:09]} 15. Nf4 {[%emt 0:05:43]} O-O-O {[%emt 0:05:41]} 16. g5 {[%emt 0:00:37]} Nfd7 {[%emt 0:01:18]} 17. Bh3 {[%emt 0:01:52]} e5 {[%emt 0:04:25]} 18. Ne6 {[%emt 0:01:16]} Rdg8 {[%emt 0:02:25]} 19. Ne2 {[%emt 0:11:46]} Kb8 {[%emt 0:00:23]} 20. d5 {[%emt 0:03:24]} c6 {[%emt 0:08:43]} 21. dxc6 {[%emt 0:07:42]} Bxc6 {[%emt 0:00:08]} 22. Qh4 {[%emt 0:00:10]} Nf8 {[%emt 0:04:35]} 23. Qg4 {[%emt 0:05:07]} Bd7 {[%emt 0:16:14]} 24. Qg1 {[%emt 0:01:35]} Kb7 {[%emt 0:00:07]} 25. Nxf8 {[%emt 0:02:07]} Rxf8 {[%emt 0:00:46]} 26. Bxd7 {[%emt 0:01:03]} Qxd7 {[%emt 0:00:34]} 27. f4 {[%emt 0:02:54]} Qe6 {[%emt 0:02:15]} 28. Kb1 {[%emt 0:03:54]} exf4 {[%emt 0:00:42]} 29. Nd4 {[%emt 0:00:39]} Qe5 {[%emt 0:01:54]} 30. Qe1 {[%emt 0:05:10]} a5 {[%emt 0:06:40]} 31. Nf3 {[%emt 0:00:07]} Qc5 {[%emt 0:00:44]} 32. e5 {[%emt 0:00:10]} d5 {[%emt 0:03:07]} 33. Nd4 {[%emt 0:00:07]} Re8 {[%emt 0:01:03]} 34. Qf1 {[%emt 0:01:10]} Nc4 {[%emt 0:03:24]} 35. Nb3 {[%emt 0:01:08]} Qc6 {[%emt 0:01:42]} 36. Qxf4 {[%emt 0:00:14]} Rxe5 {[%emt 0:00:22]} 37. Nxa5+ {[%emt 0:00:32]} Nxa5 {[%emt 0:00:26]} 38. Qxe5 {[%emt 0:00:05]} Re8 {[%emt 0:00:31]} 39. Rxh7+ {[%emt 0:00:17]} Kb6 {[%emt 0:00:22]} 40. Qd4+ {[%emt 0:00:13]} Qc5 {[%emt 0:00:17]} 41. Qf6+ {[%emt 0:32:28]} 1-0

[Event "CZE Extraliga 2019-20"]
[Site "Czech Republic"]
[Date "2019.10.12"]
[Round "1.5"]
[White "Jaracz, Pawel"]
[Black "Rubes, Jan"]
[Result "1/2-1/2"]
[ECO "A61"]
[WhiteElo "2465"]
[BlackElo "2363"]
[Annotator "ChessBase"]
[PlyCount "59"]
[EventDate "2019.09.15"]
[EventType "team-tourn"]
[EventCountry "CZE"]
[SourceTitle "playchess.com"]
[Source "ChessBase"]
[SourceQuality "1"]
[WhiteTeam "Turnov"]
[BlackTeam "Kromeriz"]
[TimeControl "40/5400+30:1800+30"]

1. d4 {[%emt 0:00:00]} Nf6 {[%emt 0:00:00]} 2. c4 {[%emt 0:00:00]} e6 {[%emt 0:00:00]} 3. Nf3 {[%emt 0:00:37]} c5 {[%emt 0:00:05]} 4. d5 {[%emt 0:00:39]} exd5 {[%emt 0:00:06]} 5. cxd5 {[%emt 0:00:04]} d6 {[%emt 0:00:06]} 6. Nc3 {[%emt 0:00:22]} g6 {[%emt 0:00:07]} 7. Bf4 {[%emt 0:01:27]} a6 {[%emt 0:00:05]} 8. a4 {[%emt 0:00:48]} Bg7 {[%emt 0:00:05]} 9. e3 {[%emt 0:01:39]} O-O {[%emt 0:00:11]} 10. h3 {[%emt 0:00:24]} Ne8 {[%emt 0:00:06]} 11. Be2 {[%emt 0:00:23]} Nd7 {[%emt 0:00:05]} 12. O-O {[%emt 0:00:10]} Qe7 {[%emt 0:00:38]} 13. Qc2 {[%emt 0:03:22]} f5 {[%emt 0:00:06]} 14. a5 {[%emt 0:04:21]} Rb8 {[%emt 0:05:11]} 15. Rfe1 {[%emt 0:04:14]} h6 {[%emt 0:14:42]} 16. Nd2 {[%emt 0:03:56]} g5 {[%emt 0:10:50]} 17. Bh2 {[%emt 0:00:13]} Kh8 {[%emt 0:12:29]} 18. Kh1 {[%emt 0:06:57]} g4 {[%emt 0:06:57]} 19. Nc4 {[%emt 0:18:07]} Ne5 {[%emt 0:07:37]} 20. Nb6 {[%emt 0:18:10]} Nc7 {[%emt 0:09:11]} 21. Bf4 {[%emt 0:05:26]} Bd7 {[%emt 0:04:10]} 22. Nxd7 {[%emt 0:01:31]} Qxd7 {[%emt 0:00:07]} 23. Ra4 {[%emt 0:06:28]} gxh3 {[%emt 0:04:26]} 24. gxh3 {[%emt 0:00:18]} b5 {[%emt 0:00:14]} 25. axb6 {[%emt 0:00:16]} Rxb6 {[%emt 0:00:04]} 26. Rg1 {[%emt 0:03:06]} Rb4 {[%emt 0:01:36]} 27. Ra2 {[%emt 0:04:40]} Qf7 {[%emt 0:03:15]} 28. Qd2 {[%emt 0:00:56]} Rfb8 {[%emt 0:03:28]} 29. Rg3 {[%emt 0:00:38]} Qf6 {[%emt 0:03:33]} 30. Rg2 {[%emt 0:01:49]} 1/2-1/2